bitfinex-derivatives/quotes_ETHF0:USTF0_20251006
["timestamp","ask_amount","ask_price","bid_price","bid_amount"]
[1759763311731,3.15071321,4650.3,4650.2,1.16940861]
[1759763311931,3.15071321,4650.3,4650.2,6.16940861]
[1759763312123,0.0845,4652.0,4650.2,6.16940861]
[1759763312124,3.2078,4650.9,4650.8,0.2906]
[1759763312324,3.2078,4650.9,4650.8,0.9935]
[1759763312737,3.2078,4650.9,4650.8,6.38037]
[1759763313128,3.21012589,4650.9,4650.8,6.38037]
[1759763313329,2.86071454,4650.9,4650.8,6.6880751]
[1759763313631,0.00232589,4650.9,4650.8,6.6880751]
[1759763314426,0.00232589,4650.9,4650.8,6.38037]
[1759763315335,3.2078,4651.4,4651.3,1.38033]
[1759763315635,3.2078,4651.4,4651.3,1.59633]
[1759763316331,3.2078,4652.0,4651.9,1.45268]
[1759763316538,3.21056309,4652.0,4651.9,1.45268]
[1759763318137,0.00276309,4652.0,4651.9,1.45268]
[1759763320940,0.27176309,4652.0,4651.9,1.45268]
[1759763321332,0.27176309,4652.0,4651.9,1.66868]
[1759763322830,0.00276309,4652.0,4651.9,1.66868]
[1759763324037,3.2078,4653.1,4652.5,1.2443]
[1759763324239,3.2078,4653.1,4653.0,1.63099]
[1759763324437,1.85831414,4654.8,4653.0,1.63099]
[1759763324438,3.2078,4653.6,4653.5,1.63095]
[1759763324636,3.7458,4654.1,4654.0,0.9511]
[1759763324840,1.00270834,4654.1,4654.0,0.9511]
[1759763325035,1.00502388,4654.1,4654.0,1.24642448]
[1759763325243,0.00231554,4654.1,4654.0,1.24642448]
[1759763325640,0.00231554,4654.1,4654.0,1.46242448]
[1759763325836,3.2078,4654.6,4654.1,0.9665]
[1759763326045,3.2078,4654.6,4654.5,1.63086]
[1759763326244,3.2078,4654.6,4654.5,1.84686]
[1759763326442,0.754,4655.3,4655.2,0.3865]
[1759763326642,0.754,4655.3,4655.2,1.4524]
[1759763326945,1.220916,4655.3,4655.2,0.464]
[1759763327134,1.389016,4655.3,4655.2,0.464]
[1759763327542,1.220916,4655.3,4655.2,0.464]
[1759763327737,1.22081697,4655.3,4655.2,0.464]
[1759763328041,1.2208001,4655.3,4655.2,0.464]
[1759763328244,0.75634429,4655.3,4655.2,0.464]
[1759763329445,0.91784429,4655.3,4655.2,0.464]
[1759763329745,0.75634429,4655.3,4655.2,0.464]
[1759763330133,0.75634429,4655.3,4655.2,0.7554]
[1759763330338,0.75634429,4655.3,4655.2,1.0604]
[1759763330540,0.00234429,4655.3,4655.2,1.0604]
[1759763331337,0.00234429,4655.3,4655.2,4.4842]
[1759763331645,0.00234429,4655.3,4655.2,1.2764]
[1759763332943,0.00234429,4655.3,4655.2,4.4842]
[1759763333144,0.2584,4656.5,4656.4,1.41661]
[1759763333343,0.2584,4656.5,4655.3,2.89873]
[1759763333344,0.5168,4654.8,4654.7,0.7252]
[1759763333845,0.5168,4654.8,4654.7,1.11175]
[1759763334041,0.51855609,4654.8,4654.7,1.11175]
[1759763335342,0.00175609,4654.8,4654.7,1.41675]
[1759763336842,0.26015609,4654.8,4654.7,1.41675]
[1759763337043,0.00175609,4654.8,4654.7,1.41675]
[1759763337344,3.2078,4655.2,4654.7,0.82035]
[1759763337549,3.2078,4655.2,4655.1,1.0302]
[1759763337949,3.2078,4655.2,4655.0,0.1747]
[1759763337950,3.4662,4655.7,4655.6,0.7252]
[1759763338150,3.4662,4655.7,4655.6,1.11167]
[1759763338347,3.46785585,4655.7,4655.6,1.11167]
[1759763338853,3.88775585,4655.7,4655.6,0.4338]
[1759763339151,3.72625585,4655.7,4655.6,0.4338]
[1759763339853,3.72625585,4655.7,4655.6,0.7252]
[1759763340046,3.72625585,4655.7,4655.6,1.0302]
[1759763340047,3.20945585,4655.7,4655.6,1.0302]
[1759763341052,0.00165585,4655.7,4655.6,1.0302]
[1759763341650,0.00165585,4655.7,4655.6,1.2462]
[1759763342952,3.2078,4656.2,4656.1,1.0302]
[1759763343141,0.96556,4658.7,4656.1,1.41663]
[1759763343142,0.114,4658.0,4656.1,1.41663]
[1759763343347,3.2078,4656.8,4656.7,1.41658]
[1759763343944,3.20940523,4656.8,4656.7,1.41658]
[1759763344946,3.46780523,4656.8,4656.7,1.41658]
[1759763345357,3.72620523,4656.8,4656.7,1.11158]
[1759763345654,3.72620523,4656.8,4656.7,1.41658]
[1759763345852,3.20940523,4656.8,4656.7,1.41658]
[1759763346356,0.26000523,4656.8,4656.7,1.41658]
[1759763347551,0.00160523,4656.8,4656.7,1.41658]
[1759763348351,0.00160523,4656.8,4656.3,3.2078]
[1759763348352,0.4412,4656.7,4656.3,0.38641]
[1759763348549,0.4412,4656.0,4655.9,0.38644]
[1759763348851,0.1457,4656.5,4655.9,0.38644]
[1759763348852,0.4412,4656.5,4655.9,1.41664]
[1759763349055,0.5767,4656.5,4656.4,1.11161]
[1759763349451,0.2884,4656.5,4656.4,1.41661]
[1759763349650,0.44280523,4656.8,4656.7,1.41658]
[1759763349651,0.29000523,4656.8,4656.7,1.41658]
[1759763349856,0.00160523,4656.8,4656.7,1.41658]
[1759763350959,0.00160523,4656.8,4656.7,1.63258]
[1759763351351,0.022,4657.9,4657.5,1.59121]
[1759763352457,0.0535978,4657.6,4657.5,1.59395098]
[1759763355056,0.6302978,4657.6,4657.5,1.59395098]
[1759763355355,6.7526073,4657.6,4657.0,0.4338]
[1759763355561,6.7526073,4657.6,4657.3,1.11153]
[1759763355562,0.5767,4657.4,4657.3,1.11153]
[1759763355753,0.5767,4657.4,4657.3,0.7252]
[1759763356154,1.0179,4657.4,4657.3,0.7252]
[1759763356456,0.5767,4657.4,4657.3,0.72692614]
[1759763356660,0.5767,4657.4,4657.3,1.03192614]
[1759763357364,0.2695978,4657.6,4657.5,1.2049]
[1759763357563,0.8462978,4657.6,4657.5,1.2049]
[1759763357864,1.75261717,4657.6,4657.5,0.4338]
[1759763358364,1.31141717,4657.6,4657.5,1.1883]
[1759763358657,2.15712717,4657.6,4657.3,0.00172614]
[1759763358862,1.0368,4657.4,4657.3,0.38805614]
[1759763359064,1.0368,4657.4,4657.3,0.82805614]
[1759763359065,1.50191937,4657.4,4657.3,0.82805614]
[1759763359364,1.50191937,4657.4,4657.3,1.12325614]
[1759763359757,1.04251937,4657.4,4657.3,1.12325614]
[1759763359958,1.50191937,4657.4,4657.3,1.12325614]
[1759763360159,1.50191937,4657.4,4657.3,0.38805614]
[1759763360459,1.04251937,4657.4,4657.3,1.41035614]
[1759763366267,0.74621937,4657.4,4657.3,1.41035614]
[1759763366666,0.46511937,4657.4,4657.3,1.41035614]
[1759763366966,4.25110908,4657.5,4657.4,1.40862]
[1759763367268,4.25111828,4657.5,4657.4,1.40862]
[1759763369165,4.71051828,4657.5,4657.4,1.40862]
[1759763370066,4.25111828,4657.5,4657.4,1.40862]
[1759763370261,3.95481828,4657.5,4657.4,1.40862]
[1759763370465,0.74701828,4657.5,4657.4,1.40862]
[1759763370662,1.04331828,4657.5,4657.4,1.40862]
[1759763370959,4.71051828,4657.5,4657.4,1.12152]
[1759763371159,4.71051828,4657.5,4657.4,0.82632]
[1759763372170,5.09682828,4657.5,4657.4,0.82632]
[1759763372371,4.71051828,4657.5,4657.4,0.82632]
[1759763374072,5.09682828,4657.5,4657.4,0.38632]
[1759763374369,4.71051828,4657.5,4657.4,0.38632]
[1759763374765,4.71051828,4657.5,4657.4,0.82632]
[1759763374965,4.71051828,4657.5,4657.4,1.12152]
[1759763378168,4.25111828,4657.5,4657.4,1.41582]
[1759763378769,1.04331828,4657.5,4657.4,1.41582]
[1759763379367,1.39522,4657.4,4657.3,0.31682614]
[1759763379573,1.0089,4656.5,4656.4,0.3864]
[1759763379772,1.26841828,4656.5,4656.4,1.1078]
[1759763380072,0.216,4656.5,4656.4,1.4021]
[1759763380473,0.68937865,4656.5,4656.4,1.40381672]
[1759763380777,0.86547865,4656.5,4656.4,1.40381672]
[1759763380978,1.04157865,4656.5,4656.4,0.00171672]
[1759763381170,1.42797865,4656.5,4656.4,0.00171672]
[1759763381577,6.42797865,4656.5,4656.4,0.00171672]
[1759763381775,6.53807865,4656.5,4656.4,0.00171672]
[1759763381972,6.53807865,4656.5,4655.7,0.4403]
[1759763381973,0.38645,4655.8,4655.7,0.4403]
[1759763382175,0.38645,4655.8,4655.1,3.2078]
[1759763382176,0.4623,4655.6,4655.1,0.38651]
[1759763382474,0.3522,4655.1,4655.0,0.1768]
[1759763382674,0.5682,4655.1,4655.0,0.1768]
[1759763382886,1.041198,4655.1,4655.0,0.6171]
[1759763383182,1.151298,4655.1,4655.0,0.00177456]
[1759763383476,6.151298,4655.1,4655.0,0.00177456]
[1759763383678,0.3522,4654.1,4654.0,0.6171]
[1759763383874,9.3881577,4655.1,4654.0,0.6171]
[1759763383875,3.2078,4654.4,4654.0,0.7522]
[1759763384173,0.216,4654.3,4654.2,1.40228]
[1759763384374,3.2078,4655.3,4654.5,0.38656]
[1759763384682,0.82416318,4655.2,4655.1,1.0157]
[1759763384979,0.47196318,4655.2,4655.1,1.0157]
[1759763385177,0.00151639,4655.3,4655.2,1.4022]
[1759763385374,0.00151639,4655.3,4655.2,4.61]
[1759763387280,0.17761639,4655.3,4655.2,1.4022]
[1759763387590,0.35371639,4655.3,4655.2,1.4022]
[1759763387783,0.17761639,4655.3,4655.2,1.4022]
[1759763388075,0.00151639,4655.3,4655.2,1.4022]
[1759763389079,0.17581639,4655.3,4655.2,1.4022]
[1759763389279,0.00151639,4655.3,4655.2,1.4022]
[1759763390379,0.17581639,4655.3,4655.2,1.4022]
[1759763391085,0.00151639,4655.3,4655.2,1.4022]
[1759763396482,3.66681639,4655.3,4655.0,0.6768]
[1759763396787,0.4575,4655.1,4655.0,0.5]
[1759763396983,0.6735,4655.1,4655.0,0.5]
[1759763397177,0.6735,4655.1,4653.9,0.96652]
[1759763397178,9.23990536,4655.1,4652.2,5.13832568]
[1759763397478,9.23990536,4655.1,4636.9,26.469]
[1759763397479,0.38676,4652.1,4652.0,0.17]
[1759763397674,0.216,4652.1,4652.0,0.17]
[1759763397880,5.216,4652.1,4652.0,0.4767]
[1759763398080,0.48997524,4652.1,4652.0,0.7558]
[1759763398284,3.4238,4652.3,4652.1,0.38676]
[1759763398478,3.4238,4652.3,4652.2,0.5858]
[1759763399582,3.4238,4652.3,4652.2,1.0049]
[1759763399979,3.2078,4652.3,4652.2,0.4191]
[1759763400180,3.2078,4652.8,4652.7,0.4191]
[1759763400380,3.4238,4652.8,4652.7,0.4191]
[1759763400580,33.521,4654.0,4652.5,0.17]
[1759763400581,3.2078,4653.3,4653.0,0.55668]
[1759763400878,0.7277461,4653.2,4653.1,0.4191]
[1759763401082,0.5117461,4653.2,4653.1,0.4191]
[1759763401480,3.4238,4653.3,4653.2,0.38667]
[1759763401683,3.93525974,4653.3,4653.2,0.80577]
[1759763402189,3.4238,4653.3,4653.2,0.80577]
[1759763403484,3.2078,4653.9,4653.7,0.38662]
[1759763403688,3.2078,4653.9,4653.8,0.4191]
[1759763403887,3.4238,4653.9,4653.8,0.4191]
[1759763404590,3.81041,4653.9,4653.8,0.4191]
[1759763404790,3.4238,4653.9,4653.8,0.4191]
[1759763405299,3.4238,4653.9,4653.8,0.7258]
[1759763405591,3.2078,4653.9,4653.8,1.0049]
[1759763405785,3.4238,4653.9,4653.8,1.0049]
[1759763406189,3.95110116,4653.9,4653.8,0.4191]
[1759763406580,0.38664,4653.6,4653.5,0.17]
[1759763406784,0.38669,4653.0,4652.8,0.4191]
[1759763406996,3.4238,4652.9,4652.8,0.4191]
[1759763407187,3.95145869,4652.9,4652.8,0.4191]
[1759763410890,0.3867,4652.8,4652.6,0.4191]
[1759763411091,0.74365869,4652.7,4652.6,0.4191]
[1759763412094,0.74365869,4652.7,4652.6,1.0049]
[1759763412888,0.74365869,4652.7,4652.6,0.7258]
[1759763413491,0.74365869,4652.7,4652.6,0.4191]
[1759763413895,0.73692,4652.6,4652.5,0.4767]
[1759763414096,1.26457869,4652.6,4652.5,0.4767]
[1759763414489,1.37407869,4652.6,4652.5,0.17]
[1759763414689,0.98735869,4652.6,4652.5,0.17]
[1759763414885,0.87785869,4652.6,4652.5,0.17]
[1759763415492,0.87785869,4652.6,4652.5,0.4767]
[1759763416002,0.87785869,4652.6,4652.5,0.8958]
[1759763419098,0.87785869,4652.6,4652.5,1.2168]
[1759763419300,1.09385869,4652.6,4652.5,1.2168]
[1759763419895,0.5098,4652.5,4652.4,0.38673]
[1759763420099,1.79225869,4652.5,4652.4,0.38673]
[1759763421301,1.79225869,4652.5,4652.4,0.70983]
[1759763425004,1.60095869,4652.5,4652.4,1.50073]
[1759763425204,0.52765869,4652.5,4652.4,1.50073]
[1759763425398,5.19298974,4652.9,4652.7,0.6441]
[1759763425399,3.6565,4652.9,4652.7,0.6441]
[1759763425600,1.51314527,4652.8,4652.7,1.03081]
[1759763425799,1.81924527,4652.8,4652.7,1.03081]
[1759763431012,1.81924527,4652.8,4652.7,0.70981]
[1759763431205,1.81924527,4652.8,4652.7,0.38671]
[1759763431816,1.81924527,4652.8,4652.7,0.70981]
[1759763432016,1.81924527,4652.8,4652.7,0.38671]
[1759763433308,2.20594527,4652.8,4652.7,0.38671]
[1759763433507,1.81924527,4652.8,4652.7,0.38671]
[1759763434519,2.20594527,4652.8,4652.7,0.38671]
[1759763434808,1.81924527,4652.8,4652.7,0.70981]
[1759763435910,1.81924527,4652.8,4652.7,0.38671]
[1759763437421,1.82424527,4652.8,4652.7,0.70711]
[1759763439015,1.1015,4652.2,4652.1,0.70716]
[1759763439217,5.05524527,4652.2,4652.1,0.70716]
[1759763439514,5.05524527,4652.2,4652.1,6.46116]
[1759763439515,0.40700049,4652.2,4652.1,6.46116]
[1759763439722,3.2078,4653.2,4653.1,1.37078]
[1759763440317,3.6974,4653.2,4653.1,1.37078]
[1759763440518,3.2078,4653.2,4653.1,1.37078]
[1759763441016,0.216,4653.4,4653.3,0.38666]
[1759763441220,0.7056,4653.4,4653.3,1.37076]
[1759763441420,3.2078,4653.7,4653.3,1.37076]
[1759763441421,3.2078,4653.7,4653.6,1.00944]
[1759763441618,3.2078,4653.7,4653.6,1.37074]
[1759763441816,3.6974,4653.7,4653.6,1.37074]
[1759763442016,3.9134,4653.7,4653.6,1.37074]
[1759763442216,4.2142,4653.7,4653.6,1.00944]
[1759763442420,4.5253,4653.7,4653.6,1.00944]
[1759763442813,3.6974,4653.7,4653.6,1.37074]
[1759763443024,3.2078,4653.7,4653.6,1.37074]
[1759763443416,3.6974,4653.7,4653.6,1.37074]
[1759763444025,0.4896,4653.7,4653.6,1.37074]
[1759763444418,3.2078,4654.4,4654.3,0.3024]
[1759763444727,3.2078,4654.4,4654.3,1.37068]
[1759763444924,3.2078,4654.4,4654.3,6.37068]
[1759763446318,0.7904,4654.8,4654.7,0.6228]
[1759763447122,0.7904,4654.8,4654.7,0.9841]
[1759763447325,1.1015,4654.8,4654.7,0.6228]
[1759763449029,0.216,4654.9,4653.6,0.3629]
[1759763449220,1.49529,4654.2,4654.1,0.3281]
[1759763449526,1.71129,4654.2,4654.1,0.6403]
[1759763450829,1.1087,4653.8,4653.7,0.38662]
[1759763451017,0.4519,4653.8,4653.7,1.38982]
[1759763451223,0.5465,4654.2,4654.1,1.0032]
[1759763451626,0.9984,4654.2,4654.1,0.6403]
[1759763451827,1.3247,4654.2,4654.1,0.6403]
[1759763452425,0.9984,4654.2,4654.1,0.6403]
[1759763452826,0.7824,4654.2,4654.1,0.6403]
[1759763453130,0.7824,4654.2,4654.1,1.0032]
[1759763453926,3.2078,4654.5,4654.4,1.38977]
[1759763454123,0.7824,4654.7,4654.6,1.38975]
[1759763454429,0.7824,4654.7,4654.6,1.02685]
[1759763454825,1.1087,4654.7,4654.6,0.6403]
[1759763455030,1.49525,4654.7,4654.5,0.38656]
[1759763455228,0.1864,4655.0,4654.3,0.38658]
[1759763455229,0.38657,4654.4,4654.3,0.38658]
[1759763455430,1.1087,4654.4,4654.3,1.02688]
[1759763456929,0.7824,4654.9,4654.8,1.02684]
[1759763457225,1.1087,4654.9,4654.8,1.02684]
[1759763457430,1.1087,4654.9,4654.8,0.6403]
[1759763457631,1.1087,4654.9,4654.8,1.02684]
[1759763458033,1.1087,4654.9,4654.8,0.6403]
[1759763458933,0.78893,4655.0,4654.7,0.38654]
[1759763458934,1.49524,4654.8,4654.7,0.38654]
[1759763459327,0.38655,4654.7,4654.6,0.3281]
[1759763459529,4.25115,4654.7,4654.6,0.3281]
[1759763459830,1.2983,4654.5,4654.4,0.71466]
[1759763460325,0.4519,4654.5,4654.4,1.38976]
[1759763460530,3.6597,4654.7,4654.6,1.38975]
[1759763460721,4.70305,4654.7,4654.6,1.02685]
[1759763460933,4.3165,4654.7,4654.6,0.71465]
[1759763461427,3.6597,4654.7,4654.6,1.38975]
[1759763461628,3.2078,4654.7,4654.6,1.38975]
[1759763461832,3.9902,4654.7,4654.6,1.38975]
[1759763462031,3.9902,4654.7,4654.6,1.02685]
[1759763462427,4.3165,4654.7,4654.6,1.02685]
[1759763462727,4.25115,4654.7,4653.9,0.96652]
[1759763463028,0.4024,4655.0,4653.6,45.09509102]
[1759763463029,3.6597,4654.2,4654.1,1.0776]
[1759763463228,4.3165,4654.2,4654.1,1.0269]
[1759763464025,3.9902,4654.2,4654.1,1.3898]
[1759763464226,3.2078,4654.2,4654.1,1.3898]
[1759763464431,0.4519,4654.5,4654.4,1.38977]
[1759763464635,0.7824,4654.5,4654.4,1.38977]
[1759763464834,0.972,4654.5,4654.4,1.02687]
[1759763465130,1.2983,4654.5,4654.3,0.38658]
[1759763465323,1.2983,4654.5,4654.4,0.38657]
[1759763465926,1.2983,4654.5,4653.7,0.96658]
[1759763465927,1.1087,4653.8,4653.7,0.38663]
[1759763466631,1.1087,4653.8,4653.7,0.71473]
[1759763466832,1.1087,4653.8,4653.7,1.02693]
[1759763467332,0.7824,4653.8,4653.7,1.38983]
[1759763467534,0.7824,4653.8,4653.7,1.02693]
[1759763468540,3.2078,4654.8,4654.7,0.38655]
[1759763468722,3.2078,4654.8,4654.7,1.02685]
[1759763468723,4.02353068,4654.8,4654.7,1.02685]
[1759763469031,4.47543068,4654.8,4654.7,1.02685]
[1759763469728,0.93713068,4654.8,4654.7,1.02685]
[1759763470029,3.20931639,4655.3,4655.1,1.02681]
[1759763470030,1.1087,4655.2,4655.1,1.02681]
[1759763470234,1.594267,4655.2,4655.1,0.38651]
[1759763472325,1.594267,4655.2,4655.1,0.71461]
[1759763472532,1.594267,4655.2,4655.1,1.02681]
[1759763472732,0.937467,4655.2,4655.1,1.38971]
[1759763473131,1.267967,4655.2,4655.1,1.38971]
[1759763473339,1.594267,4655.2,4655.1,0.71461]
[1759763473734,1.594267,4655.2,4655.1,0.38651]
[1759763474239,1.594267,4655.2,4655.1,0.71461]
[1759763474735,1.594267,4655.2,4655.1,1.02681]
[1759763474736,0.937467,4655.2,4655.1,1.02681]
[1759763475032,1.594267,4655.2,4655.1,1.02681]
[1759763475539,1.594267,4655.2,4655.1,0.38651]
[1759763476443,1.594267,4655.2,4655.1,0.71461]
[1759763477634,1.594267,4655.2,4655.1,0.38651]
[1759763477838,1.594267,4655.2,4655.0,0.38652]
[1759763478040,1.764267,4655.1,4655.0,0.38652]
[1759763478938,1.548267,4655.1,4655.0,1.35162]
[1759763479141,0.4441,4655.1,4655.0,1.35162]
[1759763479337,3.20931639,4655.3,4655.0,1.35162]
[1759763479539,3.65341639,4655.3,4655.2,1.0052]
[1759763479738,4.43780389,4655.3,4655.2,1.0052]
[1759763479934,4.75550389,4655.3,4655.2,1.0052]
[1759763480640,4.27201639,4655.3,4655.2,0.6921]
[1759763481433,0.4441,4654.9,4654.3,0.96646]
[1759763481637,0.6186,4654.4,4654.3,0.5216]
[1759763481837,0.6186,4654.4,4654.3,0.90818]
[1759763482037,0.6186,4654.4,4654.3,1.22128]
[1759763482231,1.0627,4654.4,4654.3,1.22128]
[1759763485842,0.1813,4654.5,4654.3,4.77548]
[1759763486043,0.3009,4654.7,4654.6,0.6187]
[1759763486240,0.6186,4654.7,4654.6,1.22125]
[1759763486641,1.0627,4654.7,4654.6,1.22125]
[1759763488251,1.0627,4654.7,4654.6,1.56765]
[1759763488252,0.4441,4654.7,4654.6,1.56765]
[1759763488548,0.745,4654.7,4654.6,1.56765]
[1759763488746,0.745,4654.7,4654.6,1.22125]
[1759763489450,0.4441,4654.7,4654.6,1.56765]
[1759763489650,3.20931639,4655.3,4655.2,0.3865]
[1759763489845,3.20931639,4655.3,4655.2,1.5676]
[1759763490350,3.95431639,4655.3,4655.2,1.5676]
[1759763490552,3.95431639,4655.3,4655.2,1.2212]
[1759763490953,4.27201639,4655.3,4655.2,1.2212]
[1759763491749,3.95431639,4655.3,4655.2,1.5676]
[1759763491942,3.65341639,4655.3,4655.2,1.5676]
[1759763492148,3.95431639,4655.3,4655.2,1.5676]
[1759763492957,1.06421639,4655.3,4655.2,1.2212]
[1759763493263,1.06421639,4655.3,4655.2,0.3865]
[1759763493557,1.06421639,4655.3,4654.4,0.38657]
[1759763493558,0.499,4654.5,4654.4,0.38657]
[1759763493745,0.7999,4654.5,4654.4,0.60257]
[1759763493947,0.7999,4654.5,4654.4,0.38657]
[1759763494143,1.244,4654.5,4654.4,0.38657]
[1759763495149,0.3009,4653.9,4653.7,0.96658]
[1759763495350,0.1813,4654.0,4653.3,4.74485874]
[1759763495351,1.0627,4653.4,4653.3,3.81046]
[1759763495549,0.39580958,4653.4,4653.3,4.90666]
[1759763495757,0.69040958,4653.4,4653.3,4.90666]
[1759763496554,1.00270958,4653.4,4653.3,1.00876]
[1759763496755,1.00270958,4653.4,4653.3,0.38666]
[1759763497565,1.00270958,4653.4,4653.3,0.70686]
[1759763497762,1.00270958,4653.4,4653.3,0.38666]
[1759763498461,1.00270958,4653.4,4653.3,0.70686]
[1759763499064,1.00270958,4653.4,4653.3,1.02336]
[1759763499265,1.00270958,4653.4,4653.3,0.70686]
[1759763499762,1.00270958,4653.4,4653.3,0.38666]
[1759763499964,1.00270958,4653.4,4652.4,0.38674]
[1759763499965,1.2575,4652.5,4652.4,0.38674]
[1759763501170,4.4653,4652.5,4652.4,0.38674]
[1759763501467,9.85203,4652.5,4652.3,0.38674]
[1759763501662,0.6069,4652.2,4652.1,0.38676]
[1759763501857,1.0818,4652.2,4652.1,0.38676]
[1759763502263,1.0818,4652.2,4652.0,0.3886764]
[1759763503363,1.0818,4652.1,4652.0,0.7088764]
[1759763503762,1.0818,4652.1,4652.0,0.3886764]
[1759763504463,1.0818,4652.1,4652.0,0.7088764]
[1759763504658,1.0818,4652.1,4652.0,1.0253764]
[1759763504862,1.0818,4652.1,4652.0,1.4994764]
[1759763506076,3.3835,4652.5,4652.0,1.4994764]
[1759763506077,0.7695,4652.5,4652.4,1.02344]
[1759763506281,0.7695,4652.5,4652.4,1.49754]
[1759763507171,3.3835,4653.0,4652.9,0.3867]
[1759763507376,3.3835,4653.0,4652.9,1.4975]
[1759763507377,0.6069,4653.0,4652.9,1.4975]
[1759763507681,3.2078,4653.5,4653.4,1.49745]
[1759763508076,3.5024,4653.5,4653.4,1.49745]
[1759763508277,3.2078,4653.5,4653.4,42.29745]
[1759763509382,3.6764,4653.5,4653.4,41.50685]
[1759763509784,4.2804,4653.5,4653.4,0.70685]
[1759763509985,4.2804,4653.5,4653.4,1.16105]
[1759763510185,1.0726,4653.5,4653.4,1.47625]
[1759763511583,0.604,4653.5,4653.4,1.47625]
[1759763511780,0.7796,4653.9,4653.4,1.73603]
[1759763511981,1.0726,4653.9,4653.8,1.0766]
[1759763512383,1.0726,4653.9,4653.8,1.46322]
[1759763514083,0.604,4653.9,4653.8,1.46322]
[1759763514686,1.0726,4653.9,4653.8,1.46322]
[1759763516285,0.604,4653.9,4653.8,1.46322]
[1759763517587,1.0726,4653.9,4653.8,0.69382]
[1759763517889,1.0726,4653.9,4653.8,1.14802]
[1759763518490,1.2886,4653.9,4653.8,0.38662]
[1759763519293,1.2886,4653.9,4653.8,1.46322]
[1759763519987,1.0726,4653.9,4653.8,0.84082]
[1759763520180,1.0726,4653.9,4653.8,0.38662]
[1759763520181,6.0726,4653.9,4653.8,0.38662]
[1759763522089,6.0726,4653.9,4653.8,0.69382]
[1759763522299,6.0726,4653.9,4653.8,1.46322]
[1759763522300,1.0726,4653.9,4653.8,1.46322]
[1759763523088,0.1757,4655.0,4653.8,1.46322]
[1759763523089,0.4686,4654.4,4654.3,1.46318]
[1759763523288,0.527,4654.4,4654.3,1.46318]
[1759763523492,0.311,4654.4,4654.3,1.46318]
[1759763523684,3.2078,4655.1,4655.0,1.64862]
[1759763523685,3.5188,4655.1,4655.0,1.64862]
[1759763523982,0.79215575,4655.1,4655.0,1.64862]
[1759763524190,1.55375575,4655.1,4655.0,1.46312]
[1759763524387,1.08515575,4655.1,4655.0,1.64862]
[1759763524584,0.48115575,4655.1,4655.0,1.64862]
[1759763525794,0.00151639,4655.3,4655.2,1.4631]
[1759763526195,0.31251639,4655.3,4655.2,1.4631]
[1759763527391,0.00151639,4655.3,4655.2,1.4631]
[1759763527596,1.07411639,4655.3,4655.2,1.6791]
[1759763527796,0.60551639,4655.3,4655.2,1.6791]
[1759763528198,0.00151639,4655.3,4655.2,1.6791]
[1759763528997,0.31251639,4655.3,4655.2,1.6791]
[1759763529701,1.07411639,4655.3,4655.2,1.4631]
[1759763529902,0.60551639,4655.3,4655.2,1.4631]
[1759763530302,0.31251639,4655.3,4655.2,1.4631]
[1759763531304,0.00151639,4655.3,4655.2,1.4631]
[1759763532408,0.31251639,4655.3,4655.2,1.4631]
[1759763532799,0.00151639,4655.3,4655.2,1.4631]
[1759763533900,0.38641,4656.4,4655.1,0.216]
[1759763533901,3.2078,4656.1,4656.0,1.64854]
[1759763534100,3.5188,4656.1,4656.0,1.64854]
[1759763534297,3.5188,4656.1,4655.7,0.96616]
[1759763534298,3.5188,4656.1,4653.6,1.53705874]
[1759763534299,0.604,4653.7,4653.6,1.53705874]
[1759763534505,0.604,4653.7,4652.1,0.1701]
[1759763534506,1.0726,4653.2,4652.1,0.1701]
[1759763534700,0.7796,4652.8,4652.7,0.5444]
[1759763534900,0.78233797,4652.8,4652.7,0.5465433]
[1759763537806,1.07533797,4652.8,4652.7,0.2743433]
[1759763539308,4.28313797,4652.8,4652.7,0.0021433]
[1759763541707,0.00273797,4652.8,4652.7,1.0438433]
[1759763542307,0.49023797,4652.8,4652.7,1.0438433]
[1759763542614,1.12943797,4652.8,4652.7,0.8430433]
[1759763543914,1.12943797,4652.8,4652.7,0.0021433]
[1759763544119,4.33723797,4652.8,4652.7,0.0021433]
[1759763545310,4.33723797,4652.8,4652.7,0.3234433]
[1759763545512,4.02843797,4652.8,4652.7,0.6270433]
[1759763547318,4.33723797,4652.8,4652.7,0.6270433]
[1759763548510,4.02843797,4652.8,4652.7,0.6270433]
[1759763548715,4.33723797,4652.8,4652.7,0.6270433]
[1759763549411,0.49023797,4652.8,4652.7,0.6270433]
[1759763549811,0.82063797,4652.8,4652.7,0.6270433]
[1759763550018,1.12943797,4652.8,4652.7,41.4270433]
[1759763550521,1.12943797,4652.8,4652.7,0.0021433]
[1759763550719,4.33723797,4652.8,4652.7,0.0021433]
[1759763552323,4.33723797,4652.8,4652.7,0.6270433]
[1759763552624,4.33723797,4652.8,4652.7,0.3234433]
[1759763552815,4.33723797,4652.8,4652.7,0.6270433]
[1759763553414,1.12943797,4652.8,4652.7,0.6270433]
[1759763554224,1.12943797,4652.8,4652.7,0.3234433]
[1759763554615,1.12943797,4652.8,4652.7,0.6270433]
[1759763555012,0.49023797,4652.8,4652.7,0.8278433]
[1759763555924,0.49023797,4652.8,4652.7,41.6278433]
[1759763556216,3.2078,4653.3,4652.9,1.1566]
[1759763556217,3.5366,4653.3,4652.9,1.1566]
[1759763556416,0.6371,4653.6,4653.5,1.15655]
[1759763556616,0.6371,4653.6,4653.5,1.68615]
[1759763556823,0.6371,4653.6,4653.5,1.23275]
[1759763557024,0.6371,4653.6,4653.5,0.60265]
[1759763557225,0.63956245,4653.6,4653.5,0.60265]
[1759763557419,0.63956245,4653.6,4653.5,0.38665]
[1759763558322,1.12576245,4653.6,4653.5,0.38665]
[1759763561426,1.64473303,4653.6,4653.5,0.38665]
[1759763562224,1.64510398,4653.6,4653.5,0.38665]